[Event "Early-Titled-Tuesday-Blitz-April-23-2024"]
[Site "Chess.com"]
[Date "2024.04.23"]
[Round "2"]
[White "FischerKasparow"]
[Black "JacksterThePro"]
[Result "0-1"]
[WhiteElo "2113"]
[BlackElo "2475"]
[TimeControl "180+1"]
[EndTime "8:17:38 PDT"]
[Termination "JacksterThePro won on time"]

1. e3 {[%clk 0:03:00.9]} 1... d5 {[%clk 0:02:59.4]} 2. Nf3 {[%clk 0:03:00]} 2...
Nf6 {[%clk 0:02:53.2]} 3. c4 {[%clk 0:02:59.6]} 3... e6 {[%clk 0:02:52.9]} 4.
Nc3 {[%clk 0:02:44.9]} 4... c6 {[%clk 0:02:50.5]} 5. b3 {[%clk 0:02:37.4]} 5...
Bd6 {[%clk 0:02:49.8]} 6. Bb2 {[%clk 0:02:38]} 6... O-O {[%clk 0:02:48.9]} 7. d3
{[%clk 0:02:37.3]} 7... e5 {[%clk 0:02:31.9]} 8. e4 {[%clk 0:02:30.1]} 8... d4
{[%clk 0:01:42.5]} 9. Ne2 {[%clk 0:02:27.9]} 9... a5 {[%clk 0:01:30.6]} 10. Ng3
{[%clk 0:02:27.2]} 10... Bg4 {[%clk 0:01:25]} 11. h3 {[%clk 0:02:26.3]} 11...
Bb4+ {[%clk 0:01:23.5]} 12. Ke2 {[%clk 0:02:07.2]} 12... Bxf3+ {[%clk
0:01:17.9]} 13. gxf3 {[%clk 0:02:05.4]} 13... g6 {[%clk 0:01:04.6]} 14. Bg2
{[%clk 0:00:09]} 14... Nbd7 {[%clk 0:00:54.7]} 15. h4 {[%clk 0:00:08.9]} 15...
h5 {[%clk 0:00:54.3]} 16. Rg1 {[%clk 0:00:06.8]} 16... Re8 {[%clk 0:00:53.8]}
17. Bh3 {[%clk 0:00:06.7]} 17... Nf8 {[%clk 0:00:49.2]} 18. a3 {[%clk
0:00:06.1]} 18... Bd6 {[%clk 0:00:47.4]} 19. Bc1 {[%clk 0:00:05.9]} 19... Ne6
{[%clk 0:00:43.6]} 20. Bd2 {[%clk 0:00:06.5]} 20... Kh7 {[%clk 0:00:38]} 21. Kf1
{[%clk 0:00:05.3]} 21... Ng8 {[%clk 0:00:30.3]} 22. Bxe6 {[%clk 0:00:04.7]}
22... Rxe6 {[%clk 0:00:30]} 23. Ke2 {[%clk 0:00:04.1]} 23... Qxh4 {[%clk
0:00:19.8]} 24. b4 {[%clk 0:00:03.6]} 24... axb4 {[%clk 0:00:18.9]} 25. axb4
{[%clk 0:00:03.5]} 25... Rxa1 {[%clk 0:00:19.6]} 26. Qxa1 {[%clk 0:00:03.7]}
26... Qd8 {[%clk 0:00:19.4]} 27. Rh1 {[%clk 0:00:03.2]} 27... Kg7 {[%clk
0:00:18.5]} 28. Qa7 {[%clk 0:00:02.5]} 28... h4 {[%clk 0:00:18.4]} 29. Qxb7
{[%clk 0:00:01.9]} 29... hxg3 {[%clk 0:00:16.9]} 30. fxg3 {[%clk 0:00:01.6]}
30... Re7 {[%clk 0:00:16.6]} 31. Qxc6 {[%clk 0:00:01]} 31... Qc7 {[%clk
0:00:16.1]} 0-1

[Event "Early-Titled-Tuesday-Blitz-April-23-2024"]
[Site "Chess.com"]
[Date "2024.04.23"]
[Round "2"]
[White "SameerMujumdar"]
[Black "jakopogi"]
[Result "0-1"]
[WhiteElo "2519"]
[BlackElo "2792"]
[TimeControl "180+1"]
[EndTime "8:17:39 PDT"]
[Termination "jakopogi won on time"]

1. d4 {[%clk 0:01:11.4]} 1... Nf6 {[%clk 0:02:51.9]} 2. c4 {[%clk 0:01:10.9]}
2... e6 {[%clk 0:02:51.6]} 3. Nc3 {[%clk 0:01:11.2]} 3... Bb4 {[%clk 0:02:51.8]}
4. e3 {[%clk 0:01:10]} 4... c5 {[%clk 0:02:48.9]} 5. Nf3 {[%clk 0:01:10]} 5...
d5 {[%clk 0:02:47.9]} 6. Bd3 {[%clk 0:01:09]} 6... dxc4 {[%clk 0:02:47.9]} 7.
Bxc4 {[%clk 0:01:09.9]} 7... Nc6 {[%clk 0:02:45.5]} 8. O-O {[%clk 0:01:09.3]}
8... cxd4 {[%clk 0:02:46]} 9. exd4 {[%clk 0:01:09.3]} 9... O-O {[%clk
0:02:45.9]} 10. Bg5 {[%clk 0:01:09.4]} 10... Be7 {[%clk 0:02:44.2]} 11. Re1
{[%clk 0:01:09.1]} 11... h6 {[%clk 0:02:44.1]} 12. Bh4 {[%clk 0:01:09]} 12...
Nb4 {[%clk 0:02:44.2]} 13. Qb3 {[%clk 0:01:07.6]} 13... Nc6 {[%clk 0:02:28]} 14.
Qd1 {[%clk 0:01:02.2]} 14... b6 {[%clk 0:01:42.7]} 15. Qd2 {[%clk 0:00:47.3]}
15... Bb7 {[%clk 0:01:41.2]} 16. Rad1 {[%clk 0:00:46.8]} 16... Nb4 {[%clk
0:01:28.7]} 17. Ne5 {[%clk 0:00:43.1]} 17... Nbd5 {[%clk 0:01:27.2]} 18. Bxf6
{[%clk 0:00:31]} 18... Bxf6 {[%clk 0:01:26.1]} 19. Bb3 {[%clk 0:00:27]} 19...
Rc8 {[%clk 0:01:23.9]} 20. Ne4 {[%clk 0:00:25.3]} 20... Be7 {[%clk 0:01:10.7]}
21. Bc2 {[%clk 0:00:25.1]} 21... Bb4 {[%clk 0:01:02.8]} 22. Qd3 {[%clk
0:00:25.3]} 22... Rxc2 {[%clk 0:01:01.8]} 23. Qxc2 {[%clk 0:00:24.1]} 23... Bxe1
{[%clk 0:01:02]} 24. Rxe1 {[%clk 0:00:24.7]} 24... Nf4 {[%clk 0:01:02.4]} 25.
Qd2 {[%clk 0:00:19.8]} 25... Nxg2 {[%clk 0:01:02.4]} 26. Kxg2 {[%clk 0:00:19.4]}
26... f5 {[%clk 0:01:03.1]} 27. f3 {[%clk 0:00:19.2]} 27... fxe4 {[%clk
0:01:03.1]} 28. fxe4 {[%clk 0:00:20.1]} 28... Qh4 {[%clk 0:01:02.2]} 29. Qe3
{[%clk 0:00:18.5]} 29... Bxe4+ {[%clk 0:01:01.5]} 30. Kg1 {[%clk 0:00:17]} 30...
Bd5 {[%clk 0:00:56.5]} 31. a3 {[%clk 0:00:10.9]} 31... Rf4 {[%clk 0:00:54.4]}
32. Rf1 {[%clk 0:00:09.5]} 32... Qg5+ {[%clk 0:00:34.5]} 33. Qg3 {[%clk
0:00:05.4]} 33... Rxf1+ {[%clk 0:00:34.8]} 34. Kxf1 {[%clk 0:00:05.3]} 34...
Qc1+ {[%clk 0:00:33.8]} 35. Qe1 {[%clk 0:00:01.4]} 35... Qxb2 {[%clk 0:00:33.8]}
0-1

[Event "Early-Titled-Tuesday-Blitz-April-23-2024"]
[Site "Chess.com"]
[Date "2024.04.23"]
[Round "2"]
[White "sterpfi"]
[Black "ATM622"]
[Result "0-1"]
[WhiteElo "2206"]
[BlackElo "2493"]
[TimeControl "180+1"]
[EndTime "8:17:40 PDT"]
[Termination "ATM622 won by resignation"]

1. e4 {[%clk 0:03:00.9]} 1... c6 {[%clk 0:03:00]} 2. Nc3 {[%clk 0:03:00.6]} 2...
d5 {[%clk 0:03:00.4]} 3. Nf3 {[%clk 0:03:01.2]} 3... g6 {[%clk 0:03:00.2]} 4. h3
{[%clk 0:02:56.4]} 4... Bg7 {[%clk 0:03:00.2]} 5. d4 {[%clk 0:02:56.9]} 5...
dxe4 {[%clk 0:02:59.1]} 6. Nxe4 {[%clk 0:02:57.5]} 6... Bf5 {[%clk 0:02:57.6]}
7. Ng3 {[%clk 0:02:47.3]} 7... Be6 {[%clk 0:02:52.9]} 8. c3 {[%clk 0:02:44.6]}
8... Nf6 {[%clk 0:02:52.4]} 9. Bd3 {[%clk 0:02:42.6]} 9... O-O {[%clk
0:02:49.9]} 10. Be3 {[%clk 0:02:25.1]} 10... Nd5 {[%clk 0:02:46.3]} 11. Bd2
{[%clk 0:02:21.9]} 11... Qc7 {[%clk 0:02:40.9]} 12. Qc1 {[%clk 0:02:13.6]} 12...
Re8 {[%clk 0:02:33.5]} 13. c4 {[%clk 0:01:57.5]} 13... Nf6 {[%clk 0:02:31.3]}
14. Bc3 {[%clk 0:01:45.1]} 14... Nbd7 {[%clk 0:02:28.5]} 15. O-O {[%clk
0:01:30.8]} 15... Nf8 {[%clk 0:02:27.8]} 16. Re1 {[%clk 0:01:29.6]} 16... Rad8
{[%clk 0:02:24.4]} 17. Ne5 {[%clk 0:01:10.4]} 17... Bc8 {[%clk 0:02:16.4]} 18.
Ne4 {[%clk 0:01:04]} 18... Ne6 {[%clk 0:02:14]} 19. Ng5 {[%clk 0:00:50.7]} 19...
Nxg5 {[%clk 0:02:05.8]} 20. Qxg5 {[%clk 0:00:51.6]} 20... h6 {[%clk 0:01:22.2]}
21. Qg3 {[%clk 0:00:50.8]} 21... g5 {[%clk 0:01:18]} 22. h4 {[%clk 0:00:41.4]}
22... g4 {[%clk 0:01:10.3]} 23. h5 {[%clk 0:00:28.9]} 23... Nxh5 {[%clk
0:01:05.6]} 24. Qh4 {[%clk 0:00:25.8]} 24... Nf6 {[%clk 0:01:04.4]} 25. Be2
{[%clk 0:00:18.7]} 25... h5 {[%clk 0:00:59.6]} 26. f3 {[%clk 0:00:18.3]} 26...
c5 {[%clk 0:00:56.7]} 27. fxg4 {[%clk 0:00:17.6]} 27... cxd4 {[%clk 0:00:56.4]}
28. Nxf7 {[%clk 0:00:11.4]} 28... Kxf7 {[%clk 0:00:51.4]} 29. g5 {[%clk
0:00:11.7]} 29... dxc3 {[%clk 0:00:35.8]} 30. gxf6 {[%clk 0:00:12]} 30... Qc5+
{[%clk 0:00:35.9]} 31. Kh1 {[%clk 0:00:10.8]} 31... Bxf6 {[%clk 0:00:33.3]} 32.
Bxh5+ {[%clk 0:00:10.4]} 32... Kg7 {[%clk 0:00:27.3]} 33. Qh2 {[%clk 0:00:08.4]}
33... Rh8 {[%clk 0:00:26.1]} 34. Rec1 {[%clk 0:00:04.8]} 34... Rxh5 {[%clk
0:00:25]} 35. Rxc3 {[%clk 0:00:04.1]} 35... Rxh2+ {[%clk 0:00:25]} 36. Kxh2
{[%clk 0:00:05]} 36... Bxc3 {[%clk 0:00:25.2]} 0-1

[Event "Early-Titled-Tuesday-Blitz-April-23-2024"]
[Site "Chess.com"]
[Date "2024.04.23"]
[Round "2"]
[White "wonderfultime"]
[Black "Let_it_be_1"]
[Result "1-0"]
[WhiteElo "3058"]
[BlackElo "2651"]
[TimeControl "180+1"]
[EndTime "8:17:41 PDT"]
[Termination "wonderfultime won by resignation"]

1. d4 {[%clk 0:03:00.9]} 1... d5 {[%clk 0:02:59.9]} 2. Nf3 {[%clk 0:03:00.7]}
2... e6 {[%clk 0:03:00.1]} 3. Bf4 {[%clk 0:03:00.9]} 3... Bd6 {[%clk 0:03:00.4]}
4. e3 {[%clk 0:03:00.6]} 4... Bxf4 {[%clk 0:03:00.6]} 5. exf4 {[%clk 0:03:00.9]}
5... Ne7 {[%clk 0:03:01.5]} 6. Nbd2 {[%clk 0:02:58.4]} 6... b6 {[%clk
0:03:00.9]} 7. c3 {[%clk 0:02:57.8]} 7... O-O {[%clk 0:02:59]} 8. Bd3 {[%clk
0:02:58]} 8... h6 {[%clk 0:02:59.5]} 9. Qe2 {[%clk 0:02:55.8]} 9... a5 {[%clk
0:02:59]} 10. O-O {[%clk 0:02:55.5]} 10... Ba6 {[%clk 0:02:59.1]} 11. Bxa6
{[%clk 0:02:50.7]} 11... Nxa6 {[%clk 0:02:59.2]} 12. Rfe1 {[%clk 0:02:51.6]}
12... c5 {[%clk 0:02:58.7]} 13. Rad1 {[%clk 0:02:51.2]} 13... cxd4 {[%clk
0:02:43.9]} 14. Nxd4 {[%clk 0:02:50.8]} 14... Nc5 {[%clk 0:02:43.4]} 15. N2f3
{[%clk 0:02:50.1]} 15... Qc7 {[%clk 0:02:32.6]} 16. g3 {[%clk 0:02:45.2]} 16...
Ne4 {[%clk 0:02:17.9]} 17. Ne5 {[%clk 0:02:34.9]} 17... Rac8 {[%clk 0:01:51.7]}
18. c4 {[%clk 0:02:09.9]} 18... Nd6 {[%clk 0:01:44.1]} 19. cxd5 {[%clk
0:02:05.6]} 19... Nxd5 {[%clk 0:01:43.9]} 20. Qf3 {[%clk 0:01:59.8]} 20... Ne7
{[%clk 0:01:15.4]} 21. Kg2 {[%clk 0:01:52.7]} 21... Rfd8 {[%clk 0:01:13.8]} 22.
a4 {[%clk 0:01:38.1]} 22... Qc5 {[%clk 0:01:04.7]} 23. Qb3 {[%clk 0:01:17.5]}
23... Nef5 {[%clk 0:00:52.9]} 24. Ndf3 {[%clk 0:01:07.3]} 24... Qc2 {[%clk
0:00:35.8]} 25. Qxc2 {[%clk 0:00:44.4]} 25... Rxc2 {[%clk 0:00:35.2]} 26. b3
{[%clk 0:00:43.6]} 26... Nb7 {[%clk 0:00:27.4]} 27. Rxd8+ {[%clk 0:00:33.6]}
27... Nxd8 {[%clk 0:00:27.6]} 28. g4 {[%clk 0:00:34.2]} 28... Nd6 {[%clk
0:00:24.2]} 29. Rd1 {[%clk 0:00:34.6]} 29... N8b7 {[%clk 0:00:24]} 30. Nd4
{[%clk 0:00:34.2]} 30... Rb2 {[%clk 0:00:21.7]} 31. f5 {[%clk 0:00:23.7]} 31...
Nc5 {[%clk 0:00:20.6]} 32. fxe6 {[%clk 0:00:22.7]} 32... fxe6 {[%clk 0:00:20.5]}
33. Nxe6 {[%clk 0:00:23.3]} 33... Nde4 {[%clk 0:00:19.1]} 34. Rd8+ {[%clk
0:00:21]} 34... Kh7 {[%clk 0:00:19.2]} 35. Nf8+ {[%clk 0:00:21]} 35... Kg8
{[%clk 0:00:18.9]} 36. Nfg6+ {[%clk 0:00:21.7]} 1-0

[Event "Early-Titled-Tuesday-Blitz-April-23-2024"]
[Site "Chess.com"]
[Date "2024.04.23"]
[Round "2"]
[White "Djager97"]
[Black "PoXerStar"]
[Result "0-1"]
[WhiteElo "2546"]
[BlackElo "2366"]
[TimeControl "180+1"]
[EndTime "8:17:41 PDT"]
[Termination "PoXerStar won by resignation"]

1. e4 {[%clk 0:03:00.9]} 1... c6 {[%clk 0:03:00]} 2. d4 {[%clk 0:03:00.4]} 2...
d5 {[%clk 0:03:00.5]} 3. exd5 {[%clk 0:03:01.3]} 3... cxd5 {[%clk 0:03:01.4]} 4.
Bd3 {[%clk 0:03:02.1]} 4... Nc6 {[%clk 0:03:00.1]} 5. c3 {[%clk 0:03:02.5]} 5...
Nf6 {[%clk 0:03:00.3]} 6. h3 {[%clk 0:03:02.8]} 6... e5 {[%clk 0:03:00.6]} 7.
dxe5 {[%clk 0:03:02.7]} 7... Nxe5 {[%clk 0:03:01.5]} 8. Nf3 {[%clk 0:03:03.4]}
8... Nxd3+ {[%clk 0:02:59.4]} 9. Qxd3 {[%clk 0:03:04.3]} 9... Bd6 {[%clk
0:02:59.9]} 10. O-O {[%clk 0:03:04.2]} 10... O-O {[%clk 0:02:58.8]} 11. Bg5
{[%clk 0:03:04.8]} 11... h6 {[%clk 0:02:56.1]} 12. Bh4 {[%clk 0:02:56.3]} 12...
g5 {[%clk 0:02:43.3]} 13. Bg3 {[%clk 0:02:55.6]} 13... Bxg3 {[%clk 0:02:31.7]}
14. fxg3 {[%clk 0:02:56.5]} 14... Ne4 {[%clk 0:02:31.8]} 15. Nd4 {[%clk
0:02:47.2]} 15... Qd6 {[%clk 0:02:13.9]} 16. Kh2 {[%clk 0:02:38]} 16... f5
{[%clk 0:02:11.1]} 17. Nd2 {[%clk 0:02:34.2]} 17... Bd7 {[%clk 0:02:05.8]} 18.
Rad1 {[%clk 0:02:31.5]} 18... Rae8 {[%clk 0:02:01]} 19. c4 {[%clk 0:02:20.5]}
19... f4 {[%clk 0:01:49.1]} 20. cxd5 {[%clk 0:01:17.7]} 20... fxg3+ {[%clk
0:01:41.3]} 21. Kg1 {[%clk 0:01:16.2]} 21... Nf2 {[%clk 0:01:41.6]} 22. Nc4
{[%clk 0:01:07.1]} 22... Qa6 {[%clk 0:01:10.4]} 23. Qc2 {[%clk 0:00:21.1]} 23...
Nxd1 {[%clk 0:01:00.1]} 24. Rxd1 {[%clk 0:00:22]} 24... b5 {[%clk 0:00:55.8]}
25. Nc6 {[%clk 0:00:21.6]} 25... Bf5 {[%clk 0:00:53.5]} 26. Qc3 {[%clk
0:00:09.8]} 26... bxc4 {[%clk 0:00:52.4]} 27. Qxg3 {[%clk 0:00:09.9]} 27... Qb6+
{[%clk 0:00:45.6]} 28. Kh1 {[%clk 0:00:09]} 28... Qxb2 {[%clk 0:00:43.9]} 29.
Qd6 {[%clk 0:00:09]} 29... Be4 {[%clk 0:00:33.5]} 30. Rg1 {[%clk 0:00:05.5]}
30... Rf1 {[%clk 0:00:17.4]} 0-1

[Event "Early-Titled-Tuesday-Blitz-April-23-2024"]
[Site "Chess.com"]
[Date "2024.04.23"]
[Round "2"]
[White "viktorgen2021"]
[Black "Nimrod_Veinberg"]
[Result "0-1"]
[WhiteElo "2448"]
[BlackElo "2748"]
[TimeControl "180+1"]
[EndTime "8:17:42 PDT"]
[Termination "Nimrod_Veinberg won by checkmate"]

1. d4 {[%clk 0:03:00.9]} 1... d5 {[%clk 0:02:57.6]} 2. c4 {[%clk 0:03:00.2]}
2... dxc4 {[%clk 0:02:57.9]} 3. Nf3 {[%clk 0:03:00.1]} 3... Nf6 {[%clk
0:02:57.4]} 4. e3 {[%clk 0:03:00.4]} 4... a6 {[%clk 0:02:55.6]} 5. a4 {[%clk
0:02:59.7]} 5... e6 {[%clk 0:02:55.2]} 6. Bxc4 {[%clk 0:02:59]} 6... b6 {[%clk
0:02:55.7]} 7. O-O {[%clk 0:02:58.7]} 7... Bb7 {[%clk 0:02:56]} 8. Qe2 {[%clk
0:02:59.3]} 8... Bb4 {[%clk 0:02:55.9]} 9. Rd1 {[%clk 0:02:59.3]} 9... O-O
{[%clk 0:02:55.1]} 10. Bd2 {[%clk 0:02:59.5]} 10... Bd6 {[%clk 0:02:51.3]} 11.
Nc3 {[%clk 0:02:57.2]} 11... Nbd7 {[%clk 0:02:46.4]} 12. e4 {[%clk 0:02:57.4]}
12... e5 {[%clk 0:02:44]} 13. dxe5 {[%clk 0:02:42.7]} 13... Nxe5 {[%clk
0:02:42.7]} 14. Nxe5 {[%clk 0:02:37.3]} 14... Bxe5 {[%clk 0:02:43.6]} 15. Bg5
{[%clk 0:02:34.6]} 15... Qe8 {[%clk 0:02:26.2]} 16. Bxf6 {[%clk 0:01:58.7]}
16... Bxf6 {[%clk 0:02:23.4]} 17. Nd5 {[%clk 0:01:56.5]} 17... Bxd5 {[%clk
0:02:01.4]} 18. Rxd5 {[%clk 0:01:52.4]} 18... c6 {[%clk 0:01:50.9]} 19. Rf5
{[%clk 0:01:44.9]} 19... b5 {[%clk 0:01:41]} 20. Ba2 {[%clk 0:01:34.8]} 20...
Bd4 {[%clk 0:01:31.3]} 21. Rd1 {[%clk 0:01:32.1]} 21... Rd8 {[%clk 0:01:27.1]}
22. Rd3 {[%clk 0:01:13.6]} 22... g6 {[%clk 0:01:22.9]} 23. Rg5 {[%clk 0:01:05]}
23... c5 {[%clk 0:01:22.9]} 24. Rdg3 {[%clk 0:00:56.4]} 24... Kh8 {[%clk
0:01:20.5]} 25. e5 {[%clk 0:00:47]} 25... f6 {[%clk 0:01:19.3]} 26. R5g4 {[%clk
0:00:28.5]} 26... f5 {[%clk 0:01:09.5]} 27. Rh4 {[%clk 0:00:27.4]} 27... Qxe5
{[%clk 0:01:08.3]} 28. Qf1 {[%clk 0:00:14.1]} 28... c4 {[%clk 0:01:00.3]} 29.
Rxg6 {[%clk 0:00:13.3]} 29... Bc5 {[%clk 0:00:11.6]} 30. Rgh6 {[%clk 0:00:12]}
30... Rd7 {[%clk 0:00:12.1]} 31. Qc1 {[%clk 0:00:07.1]} 31... Rfd8 {[%clk
0:00:09.7]} 32. h3 {[%clk 0:00:05.6]} 32... Rd1+ {[%clk 0:00:09.6]} 33. Qxd1
{[%clk 0:00:04.5]} 33... Rxd1# {[%clk 0:00:10.5]} 0-1

[Event "Early-Titled-Tuesday-Blitz-April-23-2024"]
[Site "Chess.com"]
[Date "2024.04.23"]
[Round "2"]
[White "Chess_RSM"]
[Black "RobertoJBM"]
[Result "0-1"]
[WhiteElo "2589"]
[BlackElo "2854"]
[TimeControl "180+1"]
[EndTime "8:17:45 PDT"]
[Termination "RobertoJBM won on time"]

1. d4 {[%clk 0:03:00.9]} 1... d5 {[%clk 0:02:59.9]} 2. c4 {[%clk 0:03:01.1]}
2... c6 {[%clk 0:03:00.8]} 3. Nf3 {[%clk 0:03:00.9]} 3... Nf6 {[%clk 0:03:01.2]}
4. Qc2 {[%clk 0:03:00.3]} 4... dxc4 {[%clk 0:03:01.2]} 5. Qxc4 {[%clk
0:02:59.9]} 5... Bf5 {[%clk 0:03:01]} 6. g3 {[%clk 0:02:58.9]} 6... e6 {[%clk
0:03:01]} 7. Nc3 {[%clk 0:02:59.1]} 7... Nbd7 {[%clk 0:03:01.4]} 8. Bg2 {[%clk
0:02:59.4]} 8... h6 {[%clk 0:03:01.6]} 9. O-O {[%clk 0:02:59.3]} 9... Be7 {[%clk
0:03:02.1]} 10. Re1 {[%clk 0:02:58.9]} 10... Ne4 {[%clk 0:03:01.9]} 11. Qb3
{[%clk 0:02:52.6]} 11... Qb6 {[%clk 0:03:01.1]} 12. Nh4 {[%clk 0:02:27.5]} 12...
Qxb3 {[%clk 0:02:59.2]} 13. axb3 {[%clk 0:02:28.4]} 13... Bxh4 {[%clk
0:02:56.1]} 14. Nxe4 {[%clk 0:02:19.6]} 14... Be7 {[%clk 0:02:51.9]} 15. Bf4
{[%clk 0:02:19.7]} 15... Bxe4 {[%clk 0:02:47]} 16. Bxe4 {[%clk 0:02:19.4]} 16...
a6 {[%clk 0:02:44.2]} 17. Bf3 {[%clk 0:02:16.6]} 17... Nf6 {[%clk 0:02:40.7]}
18. e4 {[%clk 0:02:11.8]} 18... O-O {[%clk 0:02:39.4]} 19. Red1 {[%clk
0:02:12.1]} 19... Rfd8 {[%clk 0:02:38.6]} 20. Kf1 {[%clk 0:01:53.6]} 20... Rd7
{[%clk 0:02:37.3]} 21. Ke2 {[%clk 0:01:53.8]} 21... Rad8 {[%clk 0:02:36.7]} 22.
Be5 {[%clk 0:01:46.8]} 22... Ne8 {[%clk 0:02:35.3]} 23. Ra4 {[%clk 0:01:43.5]}
23... Bf6 {[%clk 0:02:33.3]} 24. Bxf6 {[%clk 0:01:39.4]} 24... Nxf6 {[%clk
0:02:34.2]} 25. Ke3 {[%clk 0:01:38.9]} 25... Kf8 {[%clk 0:02:22.6]} 26. h3
{[%clk 0:01:38.3]} 26... Ke7 {[%clk 0:02:21.5]} 27. Rd3 {[%clk 0:01:29.2]} 27...
Ne8 {[%clk 0:02:21.2]} 28. Rc3 {[%clk 0:01:22.5]} 28... Nd6 {[%clk 0:02:20.6]}
29. Be2 {[%clk 0:01:19.9]} 29... Nb5 {[%clk 0:02:17]} 30. Bxb5 {[%clk 0:01:20]}
30... cxb5 {[%clk 0:02:13.7]} 31. Rb4 {[%clk 0:01:20.3]} 31... Kd6 {[%clk
0:02:06.6]} 32. Rc5 {[%clk 0:01:17.3]} 32... Rc7 {[%clk 0:02:04.2]} 33. Rh5
{[%clk 0:01:00.6]} 33... Rc2 {[%clk 0:01:57]} 34. d5 {[%clk 0:00:59.6]} 34... e5
{[%clk 0:01:53.8]} 35. f4 {[%clk 0:00:58.1]} 35... Kc5 {[%clk 0:01:41.5]} 36.
Rxb5+ {[%clk 0:00:23.9]} 36... axb5 {[%clk 0:01:35.8]} 37. Rxe5 {[%clk
0:00:24.8]} 37... Rd7 {[%clk 0:01:32.6]} 38. Re8 {[%clk 0:00:21.2]} 38... Rxb2
{[%clk 0:01:29.8]} 39. Rc8+ {[%clk 0:00:21.1]} 39... Kb4 {[%clk 0:01:21.8]} 40.
g4 {[%clk 0:00:20.5]} 40... Rxb3+ {[%clk 0:01:20]} 41. Kd4 {[%clk 0:00:20.8]}
41... Rb1 {[%clk 0:01:18.6]} 42. g5 {[%clk 0:00:19.3]} 42... hxg5 {[%clk
0:01:18.1]} 43. fxg5 {[%clk 0:00:20]} 43... Rh1 {[%clk 0:01:07.4]} 44. Rh8
{[%clk 0:00:18.8]} 44... g6 {[%clk 0:01:06.2]} 45. Rh7 {[%clk 0:00:16.7]} 45...
Re1 {[%clk 0:01:04.4]} 46. Rh4 {[%clk 0:00:13.8]} 46... Ka5 {[%clk 0:01:02.4]}
47. Rg4 {[%clk 0:00:06.7]} 47... b4 {[%clk 0:01:00.9]} 48. Rg3 {[%clk 0:00:06]}
48... Ka4 {[%clk 0:00:59.4]} 49. Kc4 {[%clk 0:00:04.3]} 49... b3 {[%clk
0:00:53.5]} 0-1

[Event "Early-Titled-Tuesday-Blitz-April-23-2024"]
[Site "Chess.com"]
[Date "2024.04.23"]
[Round "2"]
[White "xberli"]
[Black "FaustinoOro"]
[Result "0-1"]
[WhiteElo "2618"]
[BlackElo "2923"]
[TimeControl "180+1"]
[EndTime "8:17:48 PDT"]
[Termination "FaustinoOro won by resignation"]

1. e4 {[%clk 0:03:00]} 1... e5 {[%clk 0:02:59.4]} 2. Nf3 {[%clk 0:03:00]} 2...
Nc6 {[%clk 0:02:59.7]} 3. Bc4 {[%clk 0:03:00]} 3... Bc5 {[%clk 0:02:59.3]} 4. c3
{[%clk 0:02:58.7]} 4... Nf6 {[%clk 0:02:59.6]} 5. d4 {[%clk 0:02:58.9]} 5...
exd4 {[%clk 0:03:00.3]} 6. b4 {[%clk 0:02:59.3]} 6... Bb6 {[%clk 0:02:56.4]} 7.
e5 {[%clk 0:02:58.9]} 7... d5 {[%clk 0:02:56.5]} 8. exf6 {[%clk 0:02:56]} 8...
dxc4 {[%clk 0:02:56.8]} 9. Qe2+ {[%clk 0:02:56.5]} 9... Be6 {[%clk 0:02:53.3]}
10. fxg7 {[%clk 0:02:56]} 10... Rg8 {[%clk 0:02:53.5]} 11. O-O {[%clk
0:02:40.9]} 11... d3 {[%clk 0:02:32.7]} 12. Qe4 {[%clk 0:02:39.3]} 12... Rxg7
{[%clk 0:02:03.5]} 13. Re1 {[%clk 0:02:08.6]} 13... Qd7 {[%clk 0:01:32.5]} 14.
b5 {[%clk 0:02:01.8]} 14... Ne7 {[%clk 0:01:32.4]} 15. Ne5 {[%clk 0:01:57.9]}
15... Qd5 {[%clk 0:01:29.8]} 16. Bh6 {[%clk 0:01:43.8]} 16... Rg8 {[%clk
0:01:19.8]} 17. Nd2 {[%clk 0:01:28.4]} 17... O-O-O {[%clk 0:01:00.7]} 18. a4
{[%clk 0:01:16.1]} 18... Nf5 {[%clk 0:00:45.9]} 19. Bf4 {[%clk 0:01:07.2]} 19...
Qxe4 {[%clk 0:00:43.7]} 20. Nxe4 {[%clk 0:01:04.7]} 20... a5 {[%clk 0:00:33.4]}
21. Nd2 {[%clk 0:00:56.2]} 21... Bd5 {[%clk 0:00:27.1]} 22. g3 {[%clk
0:00:50.2]} 22... Nd6 {[%clk 0:00:27.7]} 23. Nef3 {[%clk 0:00:41.5]} 23... Rde8
{[%clk 0:00:25.3]} 24. Be5 {[%clk 0:00:35.3]} 24... f6 {[%clk 0:00:17.3]} 25.
Bd4 {[%clk 0:00:34.5]} 25... Bxf3 {[%clk 0:00:12.8]} 26. Nxf3 {[%clk 0:00:35.4]}
26... Bxd4 {[%clk 0:00:10.6]} 27. Nxd4 {[%clk 0:00:28.1]} 27... Ne4 {[%clk
0:00:10.9]} 28. Rec1 {[%clk 0:00:19.9]} 28... Rd8 {[%clk 0:00:11.1]} 29. Ne6
{[%clk 0:00:13.2]} 29... Rd6 {[%clk 0:00:10.4]} 30. Nd4 {[%clk 0:00:09.8]} 30...
Rgd8 {[%clk 0:00:09.9]} 31. Nf5 {[%clk 0:00:09.3]} 31... d2 {[%clk 0:00:06.1]}
32. Nxd6+ {[%clk 0:00:06.3]} 32... Rxd6 {[%clk 0:00:07]} 33. Rd1 {[%clk
0:00:04.2]} 33... Nxc3 {[%clk 0:00:07.4]} 34. Kf1 {[%clk 0:00:03.5]} 34... Nxd1
{[%clk 0:00:07.9]} 35. Rxd1 {[%clk 0:00:04.2]} 35... c3 {[%clk 0:00:08.6]} 0-1